Cogmind - Beta 16.1 @@@ ROGUE MODE // 2026.02.23 @ 20:57:10 Player: Scared Dad Result: Destroyed by CH-FT2(R) with Subdweller Laser Performance ------------- Evolutions (0) 0 Regions Visited (3) 600 Robots Destroyed (18) 90 Value Destroyed (598) 598 Prototype IDs (0) 0 Alien Tech Used (0) 0 Bonus (0) 0 TOTAL SCORE: 1288 Bonus ------- None Cogmind --------- Core Integrity 0/250 Matter 288/300 Energy 240/240 System Corruption 0% Temperature Cool (6) Movement Walking (125) Location -10/Subcaves Parts ------- > --- POWER (1) -------- Nuclear Core > --- PROPULSION (2) --- Aluminum Leg Titanium Leg > --- UTILITY (2) ------ Small Storage Unit Sensor Array > --- WEAPON (2) ------- Small Laser Flak Cannon > --- INVENTORY (8) ---- Ion Engine Aluminum Leg Improved Heat Sink Improved Signal Interpreter Light Armor Plating Light Assault Rifle Rocket Launcher Mining Laser Peak State ------------ > --- POWER ------------ Nuclear Core > --- PROPULSION ------- Aluminum Leg Titanium Leg > --- UTILITY ---------- Small Storage Unit Sensor Array > --- WEAPON ----------- Small Laser Flak Cannon > --- INVENTORY -------- Ion Engine Aluminum Leg Improved Heat Sink Improved Signal Interpreter Light Armor Plating Light Assault Rifle Mining Laser [Rating: 14] Favorites ----------- Power Nuclear Core Engine Ion Engine Power Core Nuclear Core Propulsion Aluminum Leg Leg Aluminum Leg Wheel Wheel Utility Small Storage Unit Device Sensor Array Storage Small Storage Unit Protection Weapon Shielding Weapon Light Assault Rifle Energy Gun Small Laser Ballistic Gun Light Assault Rifle Ballistic Cannon Flak Cannon Build | -11 -10 -10 -10 ------- Run | Yrd Mat Min Sub Slots Evolved . | . . . . Power . | . . . . Propulsion . | . . . . Utility . | . . . . Weapon . | . . . . Parts Attached 20 | 6 11 3 . Power 4 | 1 2 1 . Engine 2 | 1 1 . . Core 2 | . 1 1 . Reactor . | . . . . Propulsion 6 | 2 3 1 . Treads . | . . . . Leg 4 | . 3 1 . Wheel 2 | 2 . . . Hover . | . . . . Flight . | . . . . Utility 4 | 1 3 . . Device 1 | . 1 . . Storage 2 | 1 1 . . Processor . | . . . . Hackware . | . . . . Protection 1 | . 1 . . Artifact . | . . . . Weapon 6 | 2 3 1 . Energy Gun 1 | . 1 . . Energy Cannon . | . . . . Ballistic Gun 4 | 2 2 . . Ballistic Cannon 1 | . . 1 . Launcher . | . . . . Special Weapon . | . . . . Impact Weapon . | . . . . Slashing Weapon . | . . . . Piercing Weapon . | . . . . Special Melee Weapon . | . . . . Unidentified Prototypes . | . . . . Parts Lost 1 | . 1 . . Power . | . . . . Propulsion . | . . . . Utility . | . . . . Weapon 1 | . 1 . . Highest Loss Streak 1 | . 1 . . To Critical Strikes . | . . . . Average Backups 7 | 3 7 7 8 Power . | . . 1 1 Propulsion 2 | 2 3 1 1 Utility 2 | . 1 3 3 Weapon 2 | . 1 2 3 Tool/Special . | . . . . Unused Backups 9 | . 1 4 4 Power . | . . . . Propulsion 2 | . . 2 . Utility 4 | . . 1 3 Weapon 3 | . 1 1 1 Tool/Special . | . . . . Average Slot Usage (%) 98 | . 97 100 100 Engine 3 | . 7 . . Core 10 | . 6 14 14 Leg 21 | . 13 28 28 Wheel 6 | . 14 . . Device 12 | . 10 14 14 Storage 14 | . 14 14 14 Energy Gun 8 | . 2 14 14 Ballistic Gun 13 | . 25 4 . Ballistic Cannon 5 | . . 9 14 Peak Build Rating 14 | 6 10 14 14 Average Rating 10 | 4 8 13 14 On Entrance 7 | . 6 10 14 Avg Prop Armor Cover (%) . | . . . . Naked Turns . | . . . . Heaviest Build 20 | 13 14 20 20 Greatest Support 27 | 26 26 27 27 Greatest Overweight (x) 1 | 1 . . . Average Overweight (x) . | . . . . Largest Inventory Capacity 8 | 8 8 8 8 Average Capacity 7 | 7 8 8 8 Most Carried 8 | 6 8 8 8 Average Carried 7 | 3 7 7 8 Final Capacity 8 | 8 8 8 8 Final Carried 8 | 6 8 8 8 Class Distribution -------------------- 90% | Mutant 9% | Scavenger-Mutant Dominant Class ---------------- Mutant | -10/Materials Mutant | -10/Mines Mutant | -10/Subcaves Resources | -11 -10 -10 -10 ----------- Run | Yrd Mat Min Sub Matter Collected 562 | 206 275 81 . Remotely . | . . . . Salvage Created 658 | . 458 172 28 Parts 39 | . 33 6 . Haulers Intercepted . | . . . . Recyclers Shooed . | . . . . Parts Field Recycled . | . . . . Retrieved Matter . | . . . . Parts Self-Destructed 8 | . . . 8 Prevented . | . . . . Parts Restored . | . . . . Kills | -11 -10 -10 -10 ------- Run | Yrd Mat Min Sub Combat Hostiles Destroyed 18 | . 13 4 1 Guns 14 | . 13 1 . Cannons 4 | . . 3 1 Classes Destroyed 3 | . 2 . 1 Swarmer 3 | . 3 . . Grunt 14 | . 10 4 . Subdweller 1 | . . . 1 Best Kill Streak 3 | . 3 2 1 Combat Bots Only 3 | . 3 2 1 Max Kills in Single Turn 2 | . 2 1 1 Gunslinging 1 | . 1 . . Exploded . | . . . . Melee . | . . . . Uniques/NPCs Destroyed . | . . . . Combat | -11 -10 -10 -10 -------- Run | Yrd Mat Min Sub Hostile Shots Fired 97 | . 71 22 4 Missed 26 | . 19 6 1 Hits 71 | . 52 16 3 Projectile 71 | . 52 16 3 Critical Strikes 3 | . 2 . 1 Actively Blocked 1 | . 1 . . Damage Taken 924 | . 633 231 60 Core 254 | . 177 39 38 Absorbed by Shields . | . . . . Redirected to Shielding 31 | . 31 . . Core Remaining (%) 100 | 100 . . . Volleys Fired 61 | . 48 11 2 Largest 2 | . 2 2 2 Hottest 77 | . 60 77 77 Shots Fired 121 | . 95 22 4 Gun 111 | . 95 14 2 Cannon 10 | . . 8 2 Launcher . | . . . . Special . | . . . . Kinetic 103 | . 90 11 2 Thermal 18 | . 5 11 2 Explosive . | . . . . Electromagnetic . | . . . . Robot Hit Streak 8 | . 8 8 3 Robot Miss Streak 5 | . 5 3 2 Penetration Max . | . . . . Secondary Targets 1 | . 1 . . Max Gunslinging Chain 1 | . 1 . . Shots Hit Robots 83 | . 60 19 4 Core Hits 42 | . 30 11 1 Critical Kills 1 | . 1 . . Critical Parts Destroyed . | . . . . Critical Strikes 1 | . 1 . . Destroy 1 | . 1 . . Melee Attacks . | . . . . Impact . | . . . . Slashing . | . . . . Piercing . | . . . . Sneak Attacks . | . . . . Combat Hostiles . | . . . . Follow-up Attacks . | . . . . Damage Inflicted 893 | . 583 249 61 Guns 716 | . 575 120 21 Cannons 169 | . . 129 40 Explosions . | . . . . Melee . | . . . . Ramming 8 | . 8 . . Kinetic 723 | . 533 150 40 Thermal 162 | . 42 99 21 Explosive . | . . . . Electromagnetic . | . . . . Impact . | . . . . Slashing . | . . . . Piercing . | . . . . Highest Corruption . | . . . . Average Corruption . | . . . . Corruption Purged . | . . . . Corruption Blocked . | . . . . Overload Shots . | . . . . Overflow Damage . | . . . . Projectiles . | . . . . Explosions . | . . . . Melee . | . . . . Knockbacks 6 | . . 4 2 Impact . | . . . . Kinetic 6 | . . 4 2 Secondary . | . . . . Self-Inflicted Damage 2 | . 2 . . Shots . | . . . . Rammed 2 | . 2 . . Targets Rammed 3 | . 3 . . Kicked 1 | . 1 . . Crushed . | . . . . Highest Temperature 159 | . 78 159 . Average Temperature 35 | . 17 64 . Received Heat Transfer 408 | . 270 120 18 Siege Activations . | . . . . Martial Activations . | . . . . Shielding Activations . | . . . . Robots Disrupted . | . . . . Combat Hostiles . | . . . . Robots Corrupted . | . . . . Combat Hostiles . | . . . . Parts Fried . | . . . . Impact Corruptions . | . . . . Robots Melted . | . . . . Combat Hostiles . | . . . . Parts Melted . | . . . . Heat Transferred 375 | . 100 225 50 Parts Sabotaged . | . . . . Parts Stolen . | . . . . Parts Stripped . | . . . . Power Chain Reactions . | . . . . Alert | -11 -10 -10 -10 ------- Run | Yrd Mat Min Sub Maximum Alert Level . | . . . . Low Security (%) 100 | 100 100 100 . Level 1 . | . . . . Level 2 . | . . . . Level 3 . | . . . . Level 4 . | . . . . Level 5 . | . . . . High Security . | . . . . Max Security . | . . . . Peak Influence 135 | . 135 50 . Initial 23 | . . 23 . Average 37 | . 70 6 . Influence Increases 494 | . 394 100 . Destroy 0b10 Robot/C 340 | . 260 80 . Destroy Leader 80 | . 60 20 . Successful Hack 14 | . 14 . . Partial Spotted 15 | . 15 . . Lose Combat Pursuer 45 | . 45 . . Influence Decreases 494 | . 333 161 . Entered New Map 38 | . . 38 . Time Decay 446 | . 323 123 . Lost Part 10 | . 10 . . Squads Dispatched 3 | . 3 . . Investigation . | . . . . Extermination . | . . . . Reinforcement 3 | . 3 . . Assault . | . . . . Garrison . | . . . . Intercept . | . . . . Searches Triggered . | . . . . Construction Impeded . | . . . . Haulers Reinforced . | . . . . Active Scanning Responses . | . . . . Cargo Convoy Interrupts . | . . . . Stealth | -11 -10 -10 -10 --------- Run | Yrd Mat Min Sub Distress Signals 2 | . 2 . . Communications Jammed . | . . . . Distress Signals . | . . . . Times Spotted 29 | . 23 4 2 Peak Tracking Total 5 | . 5 2 2 Tactical Retreats 2 | . 2 . . Traps | -11 -10 -10 -10 ------- Run | Yrd Mat Min Sub Traps Triggered 1 | . 1 . . Indirectly . | . . . . Trap Hack Attempts . | . . . . Triggered . | . . . . Disarmed . | . . . . Reprogrammed . | . . . . Reused . | . . . . Traps Extracted . | . . . . Installed . | . . . . Triggered . | . . . . Machines | -11 -10 -10 -10 ---------- Run | Yrd Mat Min Sub Machines Disabled . | . . . . Max in Single Turn . | . . . . Machines Repaired . | . . . . Machines Dismantled . | . . . . Machines Sabotaged . | . . . . Overloaded Fab Kills . | . . . . Hacking | -11 -10 -10 -10 --------- Run | Yrd Mat Min Sub Machines Accessed 9 | . 8 1 . Terminals 6 | . 6 . . Fabricators . | . . . . Repair Stations . | . . . . Recycling Units 2 | . 2 . . Scanalyzers . | . . . . Garrison Access . | . . . . Total Hacks 22 | . 21 1 . Successful 15 | . 14 1 . Failed 7 | . 7 . . Catastrophic 2 | . 2 . . Database Lockouts . | . . . . Manual . | . . . . Terminals 18 | . 18 . . Fabricators . | . . . . Repair Stations . | . . . . Recycling Units 3 | . 3 . . Scanalyzers . | . . . . Garrison Access . | . . . . Terminal Hacks 13 | . 12 1 . Record 4 | . 4 . . Open Door 1 | . . 1 . Branch Access Points 1 | . 1 . . Emergency Access Points 1 | . 1 . . Locate Traps 2 | . 2 . . Patrol Status 1 | . 1 . . Transport Status 1 | . 1 . . Hauler Manifests 1 | . 1 . . Zone Layout 1 | . 1 . . Fabricator Hacks . | . . . . Repair Station Hacks . | . . . . Recycling Unit Hacks 2 | . 2 . . Retrieve Components 2 | . 2 . . Scanalyzer . | . . . . Garrison Access Hacks . | . . . . Unauthorized Hacks . | . . . . Terminals . | . . . . Fabricators . | . . . . Repair Stations . | . . . . Recycling Units . | . . . . Scanalyzers . | . . . . Garrison Access . | . . . . Data Cores Recovered . | . . . . Used . | . . . . Hacking Detections 6 | . 6 . . Full Trace Events . | . . . . Feedback Events . | . . . . Feedback Blocked . | . . . . Robot Schematics Acquired . | . . . . Robots Built . | . . . . Authchips . | . . . . Time . | . . . . Total Robot Build Rating . | . . . . Part Schematics Acquired . | . . . . Parts Built . | . . . . Authchips . | . . . . Time . | . . . . Total Part Build Rating . | . . . . Part Studies Acquired . | . . . . Parts Repaired . | . . . . Time . | . . . . Parts Recycled . | . . . . Recycled Matter . | . . . . Retrieved Matter . | . . . . Retrieved Components 9 | . 9 . . Parts Scanalyzed . | . . . . Part Schematics Acquired . | . . . . Parts Damaged . | . . . . Bothacking | -11 -10 -10 -10 ------------ Run | Yrd Mat Min Sub Used RIF Installer . | . . . . Robots Hacked . | . . . . Non-combat . | . . . . Combat . | . . . . Robot Hacks Applied . | . . . . Relay Couplers Released . | . . . . Fabnet Peak Effective % . | . . . . Robots Rewired . | . . . . Allies Hacked . | . . . . Hacks Repelled . | . . . . Allies | -11 -10 -10 -10 -------- Run | Yrd Mat Min Sub Total Allies . | . . . . Largest Group . | . . . . Highest-Rated Group . | . . . . Highest-Rated Ally . | . . . . Total Orders . | . . . . Ally Attacks . | . . . . Total Damage . | . . . . Kills . | . . . . Allies Corrupted . | . . . . Allies Melted 1 | . . 1 . Intel | -11 -10 -10 -10 ------- Run | Yrd Mat Min Sub Active Infowar (turns) 1745 | . 661 878 206 Sensors 1745 | . 661 878 206 Robot Analysis Total . | . . . . Derelict Logs Recovered 4 | . . 2 2 Drone Launches . | . . . . Drone Recoveries . | . . . . Exploration | -11 -10 -10 -10 ------------- Run | Yrd Mat Min Sub Turns Passed 2061 | 62 915 878 206 Spaces Moved 1450 | 51 653 617 129 Core 5 | 5 . . . Treads . | . . . . Legs 1048 | . 302 617 129 Wheels 397 | 46 351 . . Hover . | . . . . Flight . | . . . . Fastest Speed 50 | 50 90 120 125 Average Speed 113 | 86 103 124 125 Slowest Speed 125 | 95 120 125 125 Overloaded Moves . | . . . . Propulsion Burnouts . | . . . . Robots Hopped . | . . . . Potential Cave-ins . | . . . . Cave-ins Triggered . | . . . . Exploration Rate (%) 50 | 4 96 98 5 Regions Visited 3 Branch Regions 2 Pre-discovered Areas 1 | . . . 1 Known Exits Taken 1 | . 1 . . Unknown Exits Taken 2 | 1 . 1 . Scrap Searched 1 | . . 1 . Spaces Dug . | . . . . Terrain Destroyed . | . . . . Melee . | . . . . Projectile . | . . . . AOE . | . . . . Terrain Rammed . | . . . . Walls Destroyed . | . . . . Machines Disabled . | . . . . Actions | -11 -10 -10 -10 --------- Run | Yrd Mat Min Sub Total 1757 | 68 810 709 170 Wait 178 | . 72 67 39 Move 1447 | 50 652 616 129 Hop . | . . . . Pick Up 32 | 12 14 6 . Fast Attach . | . . . . Attach 8 | 6 2 . . Detach . | . . . . Swap 12 | . 9 3 . Drop 16 | . 10 6 . Fire 61 | . 48 11 2 Melee . | . . . . Ram 2 | . 2 . . Kick 1 | . 1 . . Crush . | . . . . Escape Stasis . | . . . . Rewire . | . . . . Trap . | . . . . Miscellaneous . | . . . . Route ------- -11/Scrapyard -10/Materials (discovered 4 exits: [*Mat x3] / *Min) -10/Mines (discovered 3 exits: [*Mat x2] / [*Sub]) -10/Subcaves History --------- Turn | Location | Event 22 | -11/Scrapyard | Discovered new exit (range 14) 63 | -11/Scrapyard | Entered Materials 280 | -10/Materials | Discovered new exit (range 7) 306 | -10/Materials | Build established: Mutant 426 | -10/Materials | Identified exit to Mines 477 | -10/Materials | Discovered new exit (range 6) 556 | -10/Materials | Core integrity fell below 50% 563 | -10/Materials | Derelicts attacked the area 847 | -10/Materials | Discovered new exit (range 13) 978 | -10/Materials | Entered Mines 1099 | -10/Mines | Learned Materials non-interactive machine intel 1118 | -10/Mines | Met a Derelict who couldn't figure out how to use a Trap Extractor 1221 | -10/Mines | Core integrity fell below 20% 1402 | -10/Mines | Discovered new exit (range 11) 1436 | -10/Mines | Learned Materials stockpile data 1443 | -10/Mines | Received a Rocket Launcher from a helpful Derelict 1458 | -10/Mines | Discovered new exit (range 16) 1842 | -10/Mines | Discovered new exit (range 10) 1856 | -10/Mines | Entered Subcaves 1878 | -10/Subcaves | Learned location of Recycling (-9) 2062 | -10/Subcaves | Destroyed by CH-FT2(R) with Subdweller Laser Last Messages --------------- 01486_ I6-A4D(g): "I have the funny feeling that things are about to get a lot worse around here, see you around!" 01486_ I6-A4D(g) slips back into the shadows. 01486_ T-07 Excavator is excavating. 01750_ K-01 Serf cleans the Laser Drill. 01842_ EXIT=FOUND LOCATION=UNKNOWN AMBIENT_HEAT=-10 GOAL=ESCAPE 01861_ Acquired derelict log, extracted data. Data stored: Mines entrances (x2). 01878_ Acquired derelict log, extracted data. World map updated: -9/Recycling. 01947_ Subatomizers dissect the Sub. Power Source. 01973_ Subatomizers dissect the Sub. Power Source, destroying it. 02057_ 0J-MQF(R) destroyed. 02060_ CH-FT2(R) knocked back. Map ----- +----------------------------------------------------+ | | | | | | | | | | | | | ?????????????????????????????????????????????????? | | ?????????????????????????????????????????????????? | | ?????????????????????????????????????????????????? | | ?????????????????????????????????????????????????? | | ?????????????????????????????????????????????????? | | ?????????????????????????????????????????????????? | | ?????????????????????????????????????????????????? | | ?????????????????????????????????????????????????? | | ?????????????????????????????????????????????????? | | ?????????????????????????????????????????????????? | | ?????????????????????????????????????????????????? | | ?????????????????????????????????????????????????? | | ?????????????????????????????????????????????????? | | ?????????????????????????????????????????????????? | | ??????????????????????????????###????????????????? | | ????????????????#######?###??## #####????????????? | | ???????????????## # # ### #### ## ##???????????? | | ????????????#### """ ## ##??????????? | | ????????????#" """" """ #??????????? | | ????????????# ##### "#"@ # ## #??????????? | | ???????????## #???#####% ###### #??????????? | | ???????????# ###???## & #????# #??????????? | | ???????????# """##### R##????## #??????????? | | ???????????## """""## " # #?????## ##??????????? | | ????????????# """ "####??????####???????????? | | ????????????#"" " ## " ## #?????????????????????? | | ???????????##""" ####### ##????????????????????? | | ???????????#""" ##????# #????????????????????? | | ???????????##" ##?????# ##????????????????????? | | ????????????# "#??????# ##?????????????????????? | | ????????????# ##????? ## # ???????????????????? | | ????????????# #???? ???????????????????? | | ????????????# #??? ??????????????????? | | ????????????## #??? ??????????????????? | | ?????????????# ### #???????????????????? | | ?????????????## #??????????????????? | | ??????????????#]%| #?????????????????? | | ??????????????# #### ??????????????????? | | ????????????? ### ##?????????????????????????? | | ???????????? ##?###??????????????????????????? | | ??????????? ##???????????????????????????????? | | ??????????# #????????????????????????????????? | | ??????????# #????????????????????????????????? | | ??????????# #????????????????????????????????? | +----------------------------------------------------+ Best States ------------- Heat Dissipation 25 Energy Generation 14 Energy Capacity 250 Matter Stores 300 Matter Capacity 300 Sight Range 16 Robot Scan Range 14 Terrain Scan Density 10 Weapon Shielding 33 Evasion (%) 55 Item Schematics ----------------- None Robot Schematics ------------------ None Fabricated ------------ Nothing Repaired ---------- Nothing Studied --------- None Alien Tech Used ----------------- None Achievements -------------- None Challenges ------------ None Game ------ Seed DirectedRocketSuit Manual? 0 Play Time 00:16:37 Cumulative 113.9 hours Start 2026.02.23 @ 20:41:46 End 2026.02.23 @ 20:57:10 Sessions 1 Manual Loads 0 Difficulty Rogue Special Mode None Game No. 139 Rogue 139 Adventurer 0 Explorer 0 Win Type - Total 0 Types 0/0/0/0/0/0/0/0/0/0 Lore% 49 Gallery% 46 Achievement% 31 Wizard Run 0 Options --------- Layout 2 ASCII 0 Keyboard 0 Movement Numpad Keybinds 0 Fullscreen 1 Font 24/Smallcaps Map View 50x44 Zoom Use 0% Tactical HUD 1 Map Filters NONE Filters NONE Steam 1 RUN: f3c2676d-7cdd-4056-9e4a-c20e13c3790e